bitfinex/quotes_BTCUSD_20250206
["timestamp","ask_amount","ask_price","bid_price","bid_amount"]
[1738824162479,2.4262016,98354.0,98353.0,0.00122407]
[1738824162679,2.4468297,98354.0,98353.0,0.00122407]
[1738824164642,2.4391097,98354.0,98353.0,0.00122407]
[1738824164780,2.4467497,98354.0,98353.0,0.00122407]
[1738824166490,2.49853139,98354.0,98353.0,0.00122407]
[1738824166703,2.4467497,98354.0,98353.0,0.00122407]
[1738824176350,0.62853365,98354.0,98353.0,0.00122407]
[1738824176598,0.62853365,98354.0,98353.0,0.15373507]
[1738824176599,0.63617365,98354.0,98353.0,0.15373507]
[1738824176772,0.63617365,98354.0,98353.0,0.23003507]
[1738824176979,0.63617365,98354.0,98353.0,0.07752407]
[1738824177778,0.63617365,98354.0,98353.0,0.00122407]
[1738824178386,0.78868365,98354.0,98353.0,0.00122407]
[1738824179164,2.28868365,98354.0,98353.0,0.00122407]
[1738824180315,2.13617365,98354.0,98353.0,0.00122407]
[1738824180464,2.13617365,98354.0,98353.0,0.15373507]
[1738824181139,0.63617365,98354.0,98353.0,0.15373507]
[1738824181422,0.62853365,98354.0,98353.0,0.15373507]
[1738824182659,0.61953365,98354.0,98353.0,0.15373507]
[1738824182795,0.62853365,98354.0,98353.0,0.15373507]
[1738824182997,0.61953365,98354.0,98353.0,0.15373507]
[1738824183218,0.61053365,98354.0,98353.0,0.15273507]
[1738824183424,0.62853365,98354.0,98353.0,0.15373507]
[1738824184106,0.61953365,98354.0,98353.0,0.15273507]
[1738824184308,0.62853365,98354.0,98353.0,0.15373507]
[1738824185175,0.62853365,98354.0,98353.0,0.00122407]
[1738824185780,0.62853365,98354.0,98353.0,0.15373507]
[1738824186513,0.62853365,98354.0,98353.0,0.23433507]
[1738824196620,0.52603,98354.0,98353.0,0.40733507]
[1738824197422,0.52423,98354.0,98353.0,0.40733507]
[1738824197823,0.51523,98354.0,98353.0,0.40733507]
[1738824198024,0.52423,98354.0,98353.0,0.40733507]
[1738824198429,0.51523,98354.0,98353.0,0.40733507]
[1738824198626,0.50623,98354.0,98353.0,0.40633507]
[1738824198966,0.408555,98354.0,98353.0,0.40633507]
[1738824199496,0.0001069,98363.0,98362.0,0.382197]
[1738824200047,0.0001069,98363.0,98362.0,0.405197]
[1738824201485,0.0011069,98363.0,98362.0,0.408197]
[1738824202558,0.0011069,98363.0,98362.0,0.41830446]
[1738824202902,0.0051069,98363.0,98362.0,0.41830446]
[1738824203059,0.0051069,98363.0,98362.0,0.43814754]
[1738824203261,0.0001069,98363.0,98362.0,0.43514754]
[1738824203485,0.0001069,98363.0,98362.0,0.43714754]
[1738824203696,0.0051069,98363.0,98362.0,0.43714754]
[1738824204821,0.0051069,98363.0,98362.0,1.29934754]
[1738824207705,0.0051069,98363.0,98362.0,0.75744754]
[1738824222859,0.0004645,98378.0,98364.0,0.302494]
[1738824222860,8e-07,98365.0,98364.0,0.302494]
[1738824223061,8e-07,98365.0,98364.0,0.325494]
[1738824224098,8e-07,98365.0,98364.0,0.327494]
[1738824224930,0.0004645,98378.0,98365.0,0.173]
[1738824225064,0.10296815,98378.0,98377.0,0.175474]
[1738824227059,0.0004645,98378.0,98377.0,0.325474]
[1738824227276,0.0004645,98378.0,98377.0,0.407974]
[1738824227485,0.0094645,98378.0,98377.0,0.407974]
[1738824227620,0.0094645,98378.0,98377.0,0.42785689]
[1738824228158,0.0004645,98378.0,98377.0,0.42785689]
[1738824228393,0.0095714,98378.0,98377.0,0.42885689]
[1738824228566,0.0185714,98378.0,98377.0,0.42985689]
[1738824230919,4e-07,98378.0,98377.0,0.42985689]
[1738824231076,0.0001068,98401.0,98400.0,0.325439]
[1738824231278,8e-07,98401.0,98400.0,0.325439]
[1738824231501,0.1074,98427.0,98426.0,0.152398]
[1738824231658,0.20990365,98427.0,98426.0,0.152398]
[1738824231865,0.2146084,98427.0,98426.0,0.152398]
[1738824232708,0.2236084,98427.0,98426.0,0.15244436]
[1738824232915,0.1162084,98427.0,98426.0,0.15244436]
[1738824234043,0.1162084,98427.0,98426.0,0.15344436]
[1738824236416,0.1162084,98427.0,98426.0,0.16368855]
[1738824240941,0.1163152,98427.0,98426.0,0.16368855]
[1738824255385,0.1163152,98427.0,98426.0,0.16268855]
[1738824255591,0.1113152,98427.0,98426.0,0.15344436]
[1738824255790,0.10661045,98427.0,98426.0,0.15344436]
[1738824255976,0.11561045,98427.0,98426.0,0.15444436]
[1738824256175,0.12050694,98427.0,98426.0,0.15444436]
[1738824266579,0.12050694,98427.0,98426.0,0.40924436]
[1738824266767,0.11561045,98427.0,98426.0,0.40924436]
[1738824267288,0.0131068,98427.0,98426.0,0.40924436]
[1738824268250,8e-07,98427.0,98426.0,0.40924436]
[1738824268426,8e-07,98427.0,98426.0,0.40824436]
[1738824268641,8e-07,98427.0,98426.0,0.95014436]
[1738824268842,0.0001067,98452.0,98426.0,0.95114436]
[1738824269054,0.0001067,98452.0,98450.0,0.325361]
[1738824269055,0.10250365,98451.0,98450.0,0.325361]
[1738824269259,0.0001067,98452.0,98451.0,0.32536]
[1738824270448,0.0001067,98452.0,98451.0,0.94746]
[1738824271079,0.0091067,98452.0,98451.0,0.94846]
[1738824271277,0.0001067,98452.0,98451.0,0.96769997]
[1738824271459,0.0001067,98452.0,98451.0,0.96869997]
[1738824272072,0.0001067,98452.0,98451.0,0.97786157]
[1738824272701,0.0031067,98452.0,98451.0,0.97886157]
[1738824272907,0.0001067,98452.0,98451.0,0.97786157]
[1738824273244,0.0001067,98452.0,98451.0,0.98686157]
[1738824274911,0.10261035,98452.0,98451.0,0.3215216]
[1738824275042,0.11287139,98452.0,98451.0,0.009]
[1738824275237,0.14891035,98452.0,98451.0,0.009]
[1738824276070,0.152369,98445.0,98419.0,0.0200747]
[1738824276279,0.10250365,98442.0,98414.0,0.023]
[1738824276490,0.10250365,98442.0,98441.0,0.152375]
[1738824277623,0.10550365,98442.0,98441.0,0.153375]
[1738824277992,1.60550365,98442.0,98441.0,0.153375]
[1738824278400,1.60550365,98442.0,98441.0,0.154375]
[1738824279632,0.10550365,98442.0,98441.0,0.154375]
[1738824280650,0.10550365,98442.0,98441.0,0.153375]
[1738824281053,0.10550365,98442.0,98441.0,0.154375]
[1738824281258,0.11302365,98442.0,98441.0,0.154375]
[1738824281518,0.11302365,98442.0,98441.0,0.153375]
[1738824282885,0.10550365,98442.0,98441.0,0.153375]
[1738824283238,0.11002365,98442.0,98441.0,0.152375]
[1738824283447,0.11402365,98442.0,98441.0,0.153375]
[1738824284090,0.10650365,98442.0,98441.0,0.153375]
[1738824284266,0.11402365,98442.0,98441.0,0.153375]
[1738824284499,0.11402365,98442.0,98441.0,0.154375]
[1738824284901,0.11402365,98442.0,98441.0,0.153375]
[1738824285334,0.11402365,98442.0,98441.0,0.154375]
[1738824285487,0.11002365,98442.0,98441.0,0.153375]
[1738824285853,0.11002365,98442.0,98441.0,0.152375]
[1738824286004,0.11002365,98442.0,98441.0,0.153375]
[1738824286384,0.11402365,98442.0,98441.0,0.154375]
[1738824286586,0.11002365,98442.0,98441.0,0.153375]
[1738824286992,0.11402365,98442.0,98441.0,0.154375]
[1738824289669,0.34609665,98442.0,98441.0,0.002]
[1738824290030,1.69372365,98442.0,98441.0,0.002]
[1738824290244,0.34609665,98442.0,98441.0,0.002]
[1738824290638,1.84609665,98442.0,98441.0,0.002]
[1738824291367,1.84609665,98442.0,98441.0,0.001]
[1738824292562,0.152377,98440.0,98434.0,0.152385]
[1738824292690,0.10250365,98435.0,98434.0,0.152385]
[1738824292886,0.09981165,98435.0,98434.0,0.152385]
[1738824293726,0.09981165,98435.0,98434.0,0.153385]
[1738824294710,0.10881165,98435.0,98434.0,0.154385]
[1738824294911,0.10881165,98435.0,98434.0,0.153385]
[1738824295315,0.11781165,98435.0,98434.0,0.154385]
[1738824297079,0.12533165,98435.0,98434.0,0.154385]
[1738824298105,0.11781165,98435.0,98434.0,0.154385]
[1738824299738,0.11781165,98435.0,98434.0,0.31445582]
[1738824300136,0.018,98435.0,98434.0,0.31445582]
[1738824300361,1e-06,98435.0,98434.0,0.31445582]
[1738824301142,0.0001067,98442.0,98441.0,0.379075]
[1738824301343,0.10261035,98442.0,98441.0,0.379075]
[1738824302204,0.0001067,98442.0,98441.0,0.379075]
[1738824302638,0.0001067,98442.0,98441.0,0.402075]
[1738824303003,0.0071067,98442.0,98441.0,0.403075]
[1738824303204,0.10961035,98442.0,98441.0,0.380075]
[1738824303361,0.10961035,98442.0,98441.0,0.304375]
[1738824311551,0.10961035,98442.0,98441.0,0.154375]
[1738824311916,0.10961035,98442.0,98441.0,0.002]
[1738824312479,0.1286112,98442.0,98441.0,0.002]
[1738824312729,0.2809842,98442.0,98441.0,0.002]
[1738824312927,0.3561842,98442.0,98441.0,0.002]
[1738824313584,0.3561842,98442.0,98441.0,0.001]
[1738824313843,0.3601842,98442.0,98441.0,0.002]
[1738824314212,0.3531842,98442.0,98441.0,0.001]
[1738824314406,0.152377,98440.0,98435.0,0.15260807]
[1738824314611,0.10250365,98439.0,98435.0,0.15260807]
[1738824315073,0.10250365,98439.0,98438.0,0.15238]
[1738824315885,0.11150365,98439.0,98438.0,0.15238]
[1738824316084,0.10250365,98439.0,98438.0,0.15238]
[1738824316585,0.15941921,98439.0,98438.0,0.15238]
[1738824316746,0.15941921,98439.0,98435.0,0.00022407]
[1738824317167,0.15941921,98439.0,98435.0,0.15260707]
[1738824317343,0.15941921,98439.0,98435.0,0.00022407]
[1738824317546,0.15941921,98439.0,98435.0,0.15360807]
[1738824317874,0.04939556,98438.0,98435.0,0.00122407]
[1738824318070,0.10250365,98437.0,98435.0,0.00022407]
[1738824318673,0.10250365,98437.0,98436.0,0.152383]
[1738824319512,0.11150365,98437.0,98436.0,0.152383]
[1738824319859,0.10250365,98437.0,98436.0,0.152383]
[1738824320302,0.12149984,98437.0,98436.0,0.152383]
[1738824320660,0.13049984,98437.0,98436.0,0.153383]
[1738824322119,0.13049984,98437.0,98436.0,0.001]
[1738824322327,0.38288084,98437.0,98436.0,0.001]
[1738824322509,0.43508084,98437.0,98436.0,0.002]
[1738824322710,1.93508084,98437.0,98436.0,0.002]
[1738824323143,2.32550084,98437.0,98436.0,0.002]
[1738824323797,2.35590432,98437.0,98436.0,0.002]
[1738824324556,2.32150084,98437.0,98436.0,0.001]
[1738824325429,2.33050084,98437.0,98436.0,0.002]
[1738824326514,2.34090389,98437.0,98436.0,0.002]
[1738824326940,2.45340754,98437.0,98436.0,0.002]
[1738824327660,2.44340754,98437.0,98436.0,0.002]
[1738824327810,2.48376275,98437.0,98436.0,0.002]
[1738824328631,2.3812591,98437.0,98436.0,0.002]
[1738824330329,2.5312591,98437.0,98436.0,0.002]
[1738824331234,2.5542591,98437.0,98436.0,0.002]
[1738824331428,2.5642591,98437.0,98436.0,0.002]
[1738824331642,2.5552591,98437.0,98436.0,0.001]
[1738824331847,3.19730746,98437.0,98436.0,0.001]
[1738824332043,3.20630746,98437.0,98436.0,0.002]
[1738824332562,3.17470275,98437.0,98436.0,0.002]
[1738824332902,3.16570275,98437.0,98436.0,0.001]
[1738824333345,3.17470275,98437.0,98436.0,0.001]
[1738824333764,2.8806791,98437.0,98436.0,0.001]
[1738824333964,1.37779605,98437.0,98436.0,0.001]
[1738824334176,1.37027605,98437.0,98436.0,0.001]
[1738824334375,0.152383,98436.0,98435.0,0.00022407]
[1738824334624,0.92082665,98436.0,98435.0,0.00022407]
[1738824335514,0.97017805,98436.0,98435.0,0.00022407]
[1738824335714,2.47017805,98436.0,98435.0,0.00022407]
[1738824337304,2.43982284,98436.0,98435.0,0.00022407]
[1738824337811,2.44882284,98436.0,98435.0,0.00122407]
[1738824338009,2.45782284,98436.0,98435.0,0.00122407]
[1738824339123,2.72032649,98436.0,98435.0,0.00122407]
[1738824339320,2.87512649,98436.0,98435.0,0.00122407]
[1738824339644,2.85212649,98436.0,98435.0,0.00122407]
[1738824340267,2.88247651,98436.0,98435.0,0.00122407]
[1738824345179,2.90547651,98436.0,98435.0,0.00122407]
[1738824346518,2.91547651,98436.0,98435.0,0.00122407]
[1738824346716,0.384995,98428.0,98426.0,4.636e-05]
[1738824346931,1.26889425,98428.0,98426.0,4.636e-05]
[1738824347282,2.76889425,98428.0,98426.0,4.636e-05]
[1738824348056,2.67743865,98428.0,98427.0,0.00122407]
[1738824348210,2.73578486,98428.0,98427.0,0.00122407]
[1738824349414,2.76742727,98428.0,98427.0,0.00122407]
[1738824349958,2.73578486,98428.0,98427.0,0.00122407]
[1738824350135,0.352435,98402.0,98396.0,7.131e-05]
[1738824350341,0.81796365,98402.0,98401.0,0.00027065]
[1738824350525,0.81796365,98402.0,98401.0,0.15270765]
[1738824350726,0.81796365,98402.0,98401.0,0.00027065]
[1738824350727,0.86730986,98402.0,98401.0,0.00027065]
[1738824350920,0.86730986,98402.0,98401.0,0.15270765]
[1738824351335,0.87630986,98402.0,98401.0,0.15370765]
[1738824352042,0.86730986,98402.0,98401.0,0.00027065]
[1738824352189,0.87630986,98402.0,98401.0,8.826e-05]
[1738824352535,1.02874486,98402.0,98401.0,8.826e-05]
[1738824353285,1.03774486,98402.0,98401.0,8.826e-05]
[1738824355027,1.12784486,98402.0,98401.0,8.826e-05]
[1738824355196,2.62784486,98402.0,98401.0,8.826e-05]
[1738824355643,2.80951635,98402.0,98401.0,8.826e-05]
[1738824356393,2.80051635,98402.0,98401.0,8.826e-05]
[1738824356515,2.91202,98402.0,98401.0,8.826e-05]
[1738824357014,2.90434836,98402.0,98401.0,8.826e-05]
[1738824357336,2.92234836,98402.0,98401.0,8.826e-05]
[1738824357940,2.94534836,98402.0,98401.0,8.826e-05]
[1738824358129,2.95534836,98402.0,98401.0,8.826e-05]
[1738824358563,3.00224836,98402.0,98401.0,8.826e-05]
[1738824359210,2.99324836,98402.0,98401.0,8.826e-05]
[1738824359676,3.00224836,98402.0,98401.0,8.826e-05]
[1738824360154,2.99324836,98402.0,98401.0,8.826e-05]
[1738824360311,3.00224836,98402.0,98401.0,8.826e-05]
[1738824360513,3.10924836,98402.0,98401.0,2.6e-07]
[1738824361753,0.35249,98367.0,98365.0,0.00022428]
[1738824362068,0.46251365,98367.0,98366.0,0.08338109]
[1738824362274,0.51185986,98367.0,98366.0,0.0004645]
[1738824362523,0.35936986,98367.0,98366.0,0.0004645]
[1738824362793,0.51185986,98367.0,98366.0,0.0004645]
[1738824363014,0.61436351,98367.0,98366.0,0.0004645]
[1738824363617,1.12230351,98367.0,98366.0,0.0004645]
[1738824363972,1.13130351,98367.0,98366.0,0.0004645]
[1738824364377,1.02879986,98367.0,98366.0,0.0004645]
[1738824364795,1.03779986,98367.0,98366.0,0.00028209]
[1738824365143,1.02879986,98367.0,98366.0,0.00028209]
[1738824366141,1.02127986,98367.0,98366.0,0.00028209]
[1738824366299,1.03779986,98367.0,98366.0,0.00028209]
[1738824366503,1.22000351,98367.0,98366.0,0.00028209]
[1738824366743,2.72000351,98367.0,98366.0,0.00028209]
[1738824367384,2.71100351,98367.0,98366.0,0.00028209]
[1738824367542,2.70200351,98367.0,98366.0,0.00028209]
[1738824367956,2.75680351,98367.0,98366.0,0.00028209]
[1738824368603,2.76716763,98367.0,98366.0,0.00028209]
[1738824368800,2.77616763,98367.0,98366.0,0.00028209]
[1738824370146,2.67366398,98367.0,98366.0,0.00028209]
[1738824370403,2.59396398,98367.0,98366.0,0.00028209]
[1738824371452,2.77696398,98367.0,98366.0,0.00028209]
[1738824371574,2.79609777,98367.0,98366.0,0.00028209]
[1738824371782,2.8528487,98367.0,98366.0,0.00028209]
[1738824371987,2.95535235,98367.0,98366.0,0.00028209]
[1738824372187,2.82735235,98367.0,98366.0,0.00028209]
[1738824372391,3.22735235,98367.0,98366.0,0.00050637]
[1738824372618,3.24535235,98367.0,98366.0,0.00050637]
[1738824372794,3.25535235,98367.0,98366.0,0.00050637]
[1738824372993,3.1298487,98367.0,98366.0,0.00050637]
[1738824374050,3.1528487,98367.0,98366.0,0.00050637]
[1738824375507,3.1298487,98367.0,98366.0,0.00050637]
[1738824375803,3.1198487,98367.0,98366.0,0.00050637]
[1738824376016,3.1298487,98367.0,98366.0,0.00050637]
[1738824376147,3.23235235,98367.0,98366.0,0.00050637]
[1738824377005,3.0438487,98367.0,98366.0,0.00050637]
[1738824377151,2.98016458,98367.0,98366.0,0.00050637]
[1738824377360,1.03768458,98367.0,98366.0,0.00050637]
[1738824377560,1.33768458,98367.0,98366.0,0.00050637]
[1738824377797,2.83768458,98367.0,98366.0,0.00050637]
[1738824378173,2.82868458,98367.0,98366.0,0.00050637]
[1738824378374,2.92218823,98367.0,98366.0,0.00050637]
[1738824378592,2.93118823,98367.0,98366.0,0.00050637]
[1738824378787,2.94018823,98367.0,98366.0,0.00050637]
[1738824379014,2.94018823,98367.0,98354.0,0.00022449]
[1738824379015,0.152536,98337.0,98336.0,0.08272407]
[1738824379254,0.25503965,98337.0,98336.0,0.08272407]
[1738824379467,0.20250365,98337.0,98336.0,0.08272407]
[1738824379667,0.10250365,98337.0,98336.0,0.23526207]
[1738824380295,0.12190289,98337.0,98336.0,0.23526207]
[1738824381068,0.13090289,98337.0,98336.0,0.23526207]
[1738824381310,0.12190289,98337.0,98336.0,0.28076207]
[1738824381490,0.13090289,98337.0,98336.0,0.28076207]
[1738824381740,0.13990289,98337.0,98336.0,0.28076207]
[1738824381909,0.13090289,98337.0,98336.0,0.28076207]
[1738824382292,0.13990289,98337.0,98336.0,0.28076207]
[1738824382513,0.12096792,98337.0,98336.0,0.28076207]
[1738824382717,0.11196792,98337.0,98336.0,0.28076207]
[1738824383126,0.12096792,98337.0,98336.0,0.28076207]
[1738824383323,0.12996792,98337.0,98336.0,0.28076207]
[1738824383703,0.11196792,98337.0,98336.0,0.28076207]
[1738824383900,0.12096792,98337.0,98336.0,0.28076207]
[1738824384104,0.11196792,98337.0,98336.0,0.28076207]
[1738824385669,0.12096792,98337.0,98336.0,0.28076207]
[1738824386034,0.13997466,98337.0,98336.0,0.28076207]
[1738824386256,0.13097466,98337.0,98336.0,0.28076207]
[1738824386465,0.13997466,98337.0,98336.0,0.28076207]
[1738824386864,0.13097466,98337.0,98336.0,0.28076207]
[1738824387186,0.13997466,98337.0,98336.0,0.28076207]
[1738824387562,0.13097466,98337.0,98336.0,0.28076207]
[1738824387993,0.13997466,98337.0,98336.0,0.28076207]
[1738824390733,0.01846427,98337.0,98336.0,0.28076207]
[1738824392984,0.01846427,98337.0,98336.0,0.43076207]
[1738824393908,2.7e-07,98337.0,98336.0,0.43076207]
[1738824394046,2.7e-07,98337.0,98336.0,0.45376207]
[1738824394246,0.5080468,98367.0,98366.0,0.233291]
[1738824394452,0.61055045,98367.0,98366.0,0.279691]
[1738824395711,0.61055045,98367.0,98366.0,0.27973748]
[1738824396274,0.61055045,98367.0,98366.0,0.42973748]
[1738824397145,0.62855045,98367.0,98366.0,0.43173748]
[1738824397371,0.5170468,98367.0,98366.0,0.44094539]
[1738824397608,0.5080468,98367.0,98366.0,0.43994539]
[1738824397827,0.5170468,98367.0,98366.0,0.44194539]
[1738824398076,0.5260468,98367.0,98366.0,0.44194539]
[1738824398524,0.5080468,98367.0,98366.0,0.43994539]
[1738824398756,0.5170468,98367.0,98366.0,0.44094539]
[1738824399000,0.5260468,98367.0,98366.0,0.46494539]
[1738824403203,0.5170468,98367.0,98366.0,0.46394539]
[1738824403603,0.5080468,98367.0,98366.0,0.46694539]
[1738824403842,0.5080468,98367.0,98366.0,0.47594539]
[1738824404003,0.5090468,98367.0,98366.0,0.47594539]
[1738824405643,0.61155045,98367.0,98366.0,0.45294539]
[1738824409120,0.61155045,98367.0,98366.0,0.32574539]
[1738824409323,0.61155045,98367.0,98366.0,0.16304648]
[1738824410085,0.61155045,98367.0,98366.0,0.15904648]
[1738824410284,0.76304045,98367.0,98366.0,4.648e-05]
[1738824410486,0.76704045,98367.0,98366.0,0.00104648]
[1738824410611,0.77604045,98367.0,98366.0,0.00104648]
[1738824410808,0.77204045,98367.0,98366.0,0.00104648]
[1738824411379,0.62855045,98367.0,98366.0,0.00204648]
[1738824411780,0.62855045,98367.0,98366.0,0.15453748]
[1738824412022,0.61955045,98367.0,98366.0,0.15353748]
[1738824412580,0.61055045,98367.0,98366.0,0.15253748]
[1738824412790,0.61955045,98367.0,98366.0,0.15353748]
[1738824413384,0.61955045,98367.0,98366.0,0.43133748]
[1738824413590,0.5260468,98367.0,98366.0,0.43233748]
[1738824413848,0.5170468,98367.0,98366.0,0.43133748]
[1738824414049,0.5080468,98367.0,98366.0,0.43033748]
[1738824414191,0.5260468,98367.0,98366.0,0.43233748]
[1738824414392,0.5260468,98367.0,98366.0,0.44228802]
[1738824415121,0.5260468,98367.0,98366.0,0.39658802]
[1738824415541,0.5170468,98367.0,98366.0,0.39558802]
[1738824415922,0.5260468,98367.0,98366.0,0.39658802]
[1738824422806,0.62855045,98367.0,98366.0,0.31448802]
[1738824423010,0.62855045,98367.0,98366.0,0.30453748]
[1738824423189,0.78104045,98367.0,98366.0,0.00204648]
[1738824423466,0.62855045,98367.0,98366.0,0.00204648]
[1738824424400,0.64756674,98367.0,98366.0,0.00204648]
[1738824424581,0.80005674,98367.0,98366.0,0.00204648]
[1738824425189,0.94505674,98367.0,98366.0,0.00204648]
[1738824425549,0.79256674,98367.0,98366.0,0.00204648]
[1738824425749,0.94505674,98367.0,98366.0,0.00204648]
[1738824426105,0.93605674,98367.0,98366.0,0.00104648]
[1738824426747,0.94505674,98367.0,98366.0,0.00204648]
[1738824428807,2.52495674,98367.0,98366.0,0.00204648]
[1738824433002,2.51595674,98367.0,98366.0,0.00104648]
[1738824433199,2.51595674,98367.0,98366.0,4.648e-05]
[1738824433422,2.52495674,98367.0,98366.0,4.648e-05]
[1738824433831,2.51595674,98367.0,98366.0,4.648e-05]
[1738824434034,2.62495674,98367.0,98366.0,4.648e-05]
[1738824434442,2.52495674,98367.0,98366.0,4.648e-05]
[1738824434698,2.62495674,98367.0,98366.0,4.648e-05]
[1738824436056,3.13305674,98367.0,98366.0,4.648e-05]
[1738824436842,3.12405674,98367.0,98366.0,4.648e-05]
[1738824436998,0.481628,98342.0,98341.0,0.08291659]
[1738824437195,1.09959165,98342.0,98341.0,0.0829631]
[1738824437402,1.09959165,98342.0,98341.0,4.651e-05]
[1738824437596,2.59959165,98342.0,98341.0,4.651e-05]
[1738824438215,2.60859165,98342.0,98341.0,4.651e-05]
[1738824439488,2.61759165,98342.0,98341.0,4.651e-05]
[1738824440807,1.11759165,98342.0,98341.0,4.651e-05]
[1738824441291,2.61759165,98342.0,98341.0,4.651e-05]
[1738824442529,2.61759165,98342.0,98341.0,0.00027079]
[1738824442673,2.38586365,98342.0,98341.0,0.00027079]
[1738824442900,0.83596365,98342.0,98341.0,0.00027079]
[1738824443264,2.48849165,98342.0,98341.0,0.00027079]
[1738824443638,2.33596365,98342.0,98341.0,0.00027079]
[1738824444643,2.48849165,98342.0,98341.0,0.00027079]
[1738824447084,0.98849165,98342.0,98341.0,0.00027079]
[1738824447309,0.82844365,98342.0,98341.0,0.00027079]
[1738824447515,0.88849165,98342.0,98341.0,0.00027079]
[1738824447742,0.73596365,98342.0,98341.0,0.00027079]
[1738824447943,0.83596365,98342.0,98341.0,0.00027079]
[1738824448158,0.98849165,98342.0,98341.0,0.00027079]
[1738824449104,2.48849165,98342.0,98341.0,0.00027079]
[1738824451338,2.47949165,98342.0,98341.0,0.00027079]
[1738824451650,2.48849165,98342.0,98341.0,0.00027079]
[1738824452334,2.47949165,98342.0,98341.0,0.00027079]
[1738824452553,2.47049165,98342.0,98341.0,0.00027079]
[1738824452765,2.48849165,98342.0,98341.0,0.00027079]
[1738824453200,2.47949165,98342.0,98341.0,0.00027079]
[1738824453403,2.48849165,98342.0,98341.0,0.00027079]
[1738824453819,2.47949165,98342.0,98341.0,0.00027079]
[1738824454023,2.5909953,98342.0,98341.0,0.00027079]
[1738824454440,2.48849165,98342.0,98341.0,0.00027079]
[1738824454614,2.47949165,98342.0,98341.0,0.00027079]
[1738824454986,2.48849165,98342.0,98341.0,0.00027079]
[1738824455389,2.47949165,98342.0,98341.0,0.00027079]
[1738824455599,2.48849165,98342.0,98341.0,0.00027079]
[1738824460223,2.5909953,98342.0,98341.0,0.00027079]
[1738824461052,2.48849165,98342.0,98341.0,0.00027079]
[1738824464313,2.61099165,98342.0,98341.0,0.00027079]
[1738824468151,2.48849165,98342.0,98341.0,0.00027079]
[1738824470479,2.5075463,98342.0,98341.0,0.00027079]
[1738824471084,1.0075463,98342.0,98341.0,0.00027079]
[1738824471502,2.5075463,98342.0,98341.0,0.00027079]
[1738824471642,2.48849165,98342.0,98341.0,0.00027079]
[1738824473539,0.1,98331.0,98323.0,0.00652235]
[1738824473742,0.10250365,98325.0,98324.0,0.152556]
[1738824475297,0.11150365,98325.0,98323.0,0.15302227]
[1738824475457,0.11902365,98325.0,98323.0,0.00046427]
[1738824475660,0.11902365,98325.0,98324.0,0.152556]
[1738824476239,0.11002365,98325.0,98324.0,0.152556]
[1738824476444,0.12802365,98325.0,98324.0,0.152556]
[1738824476624,0.11902365,98325.0,98324.0,0.152556]
[1738824477048,0.12802365,98325.0,98324.0,0.152556]
[1738824477960,0.12802365,98325.0,98324.0,0.15278028]
[1738824478355,0.14708074,98325.0,98324.0,0.15278028]
[1738824478562,0.13956074,98325.0,98324.0,0.15278028]
[1738824478765,0.13956074,98325.0,98324.0,0.27259788]
[1738824479131,0.13956074,98325.0,98324.0,0.22759788]
[1738824479353,0.12050365,98325.0,98324.0,0.00022428]
[1738824479752,0.12050365,98325.0,98324.0,0.15278028]
[1738824480369,0.12050365,98325.0,98324.0,0.23318028]
[1738824481745,0.11150365,98325.0,98324.0,0.23318028]
[1738824482124,0.12050365,98325.0,98324.0,0.23318028]
[1738824482334,0.11150365,98325.0,98324.0,0.23318028]
[1738824483143,0.12050365,98325.0,98324.0,0.23318028]
[1738824484227,0.12050365,98325.0,98324.0,0.42918028]
[1738824485873,0.018,98325.0,98324.0,0.42918028]
[1738824487025,0.018,98325.0,98324.0,0.45218028]
[1738824487228,0.50794,98342.0,98341.0,0.30253]
[1738824487445,0.50794,98342.0,98341.0,0.43343]
[1738824488587,0.51694,98342.0,98341.0,0.43343]
[1738824489581,0.51694,98342.0,98341.0,0.43365428]
[1738824489717,0.51694,98342.0,98341.0,0.44378518]
[1738824489718,0.52594,98342.0,98341.0,0.44378518]
[1738824490135,0.5260468,98342.0,98341.0,0.44378518]
[1738824490870,0.62855045,98342.0,98341.0,0.23475428]
[1738824491715,0.62855045,98342.0,98341.0,0.15275428]
[1738824493507,0.62855045,98342.0,98341.0,0.23475428]
[1738824497257,0.78107845,98342.0,98341.0,0.00022428]
[1738824497647,0.62855045,98342.0,98341.0,0.00022428]
[1738824498094,0.78107845,98342.0,98341.0,0.00022428]
[1738824498337,0.62855045,98342.0,98341.0,0.00022428]
[1738824498460,0.78107845,98342.0,98341.0,0.00022428]
[1738824499900,2.28107845,98342.0,98341.0,0.00022428]
[1738824500103,2.35937845,98342.0,98341.0,0.00022428]
[1738824501571,2.35037845,98342.0,98341.0,0.00022428]
[1738824502107,2.35937845,98342.0,98341.0,0.00022428]
[1738824502872,0.78107845,98342.0,98341.0,0.00022428]
[1738824503082,0.78859845,98342.0,98341.0,0.00022428]
[1738824503288,0.63607045,98342.0,98341.0,0.00022428]
[1738824503720,0.62855045,98342.0,98341.0,0.00022428]
[1738824503923,0.63607045,98342.0,98341.0,0.15275428]
[1738824506876,0.63607045,98342.0,98341.0,0.00022428]
[1738824507081,0.78859845,98342.0,98341.0,0.00022428]
[1738824507288,0.63607045,98342.0,98341.0,0.00022428]
[1738824507497,0.63607045,98342.0,98341.0,0.15275428]
[1738824507797,0.62855045,98342.0,98341.0,0.15275428]
[1738824510822,0.62855045,98342.0,98341.0,0.23295428]
[1738824511035,0.62855045,98342.0,98341.0,0.15275428]
[1738824514029,0.62855045,98342.0,98341.0,0.00022428]
[1738824514475,0.62855045,98342.0,98341.0,0.15275428]
[1738824514714,0.62855045,98342.0,98341.0,0.00022428]
[1738824515160,0.78107845,98342.0,98341.0,0.00022428]
[1738824515425,0.62855045,98342.0,98341.0,0.00022428]
[1738824516870,0.62855045,98342.0,98320.0,0.02022407]
[1738824516871,0.4,98326.0,98320.0,0.02022407]
[1738824517088,0.152563,98320.0,98319.0,18.97224355]
[1738824517300,0.0487,98325.0,98319.0,18.97224355]
[1738824517512,0.50794,98326.0,98319.0,18.97224355]
[1738824517513,0.1,98321.0,98319.0,18.97224355]
[1738824517724,0.1,98321.0,98320.0,0.152563]
[1738824517929,0.1,98321.0,98319.0,18.97224355]
[1738824518348,0.009,98320.0,98319.0,18.97224355]
[1738824519118,0.109,98321.0,98319.0,18.97224355]
[1738824519321,0.1,98321.0,98319.0,19.12480755]
[1738824519503,0.009,98320.0,98319.0,19.12480755]
[1738824519947,0.009,98320.0,98319.0,18.9721523]
[1738824520965,0.018,98320.0,98319.0,18.9721523]
[1738824521183,0.009,98320.0,98319.0,18.9721523]
[1738824521942,0.009,98320.0,98319.0,18.97206116]
[1738824522179,0.018,98320.0,98319.0,18.97206116]
[1738824524014,0.018,98320.0,98319.0,19.12462516]
[1738824524227,0.12050365,98320.0,98319.0,19.12462516]
[1738824525647,0.12050365,98320.0,98319.0,19.20132516]
[1738824528937,0.12050365,98320.0,98319.0,19.21146265]